[Event "4th Memorial Warakomska-B 2020"]
[Site "Suwalki"]
[Date "2020.08.07"]
[Round "1.13"]
[White "Zapalowska, Wiktoria"]
[Black "Bancarewicz, Aleks"]
[Result "0-1"]
[ECO "A45"]
[WhiteElo "1250"]
[BlackElo "1781"]
[Annotator "NA RC"]
[PlyCount "68"]
[EventDate "2020.08.06"]
[EventType "swiss"]
[EventCountry "POL"]
[SourceTitle "playchess.com"]
[Source "ChessBase"]
[SourceQuality "1"]
[TimeControl "40/5400+30:1800+30"]

1. d4 {[%emt 0:00:00]} Nf6 {[%emt 0:00:00]} 2. Bf4 {[%emt 0:00:00]} g6 {[%emt 0:00:19]} 3. e3 {[%emt 0:00:09]} Bg7 {[%emt 0:00:12]} 4. Nf3 {[%emt 0:00:21]} d6 {[%emt 0:01:12]} 5. h3 {[%emt 0:00:15]} O-O {[%emt 0:00:21]} 6. Be2 {[%emt 0:02:43]} b6 {[%emt 0:01:45]} 7. Nbd2 {[%emt 0:01:53]} Bb7 {[%emt 0:00:40]} 8. O-O {[%emt 0:01:06]} Nbd7 {[%emt 0:02:58]} 9. Bh2 {[%emt 0:06:24]} c5 {[%emt 0:10:49]} 10. c3 {[%emt 0:06:30]} a6 {[%emt 0:04:31]} 11. a4 {[%emt 0:01:35]} Qb8 {[%emt 0:07:14]} 12. b4 {[%emt 0:07:04]} Rc8 {[%emt 0:10:58]} 13. Qb3 {[%emt 0:13:20]} cxb4 {[%emt 0:12:51]} 14. cxb4 {[%emt 0:00:30]} Bd5 {[%emt 0:00:43]} 15. Bc4 {[%emt 0:03:55]} Rxc4 {[%emt 0:04:20]} 16. Nxc4 {[%emt 0:06:11]} b5 {[%emt 0:00:10]} 17. axb5 {[%emt 0:03:06]} axb5 {[%emt 0:00:05]} 18. Nfd2 {[%emt 0:08:10]} Rxa1 {[%emt 0:05:10]} 19. Rxa1 {[%emt 0:00:11]} Nb6 {[%emt 0:05:23]} 20. Qa3 {[%emt 0:06:43]} Nxc4 {[%emt 0:01:22]} 21. Nxc4 {[%emt 0:00:12]} Bxc4 {[%emt 0:03:17]} 22. Qa8 {[%emt 0:03:33]} Qxa8 {[%emt 0:00:33]} 23. Rxa8+ {[%emt 0:00:07]} Bf8 {[%emt 0:00:02]} 24. f3 {[%emt 0:01:22]} Nd5 {[%emt 0:00:22]} 25. Bf4 {[%emt 0:02:02]} Kg7 {[%emt 0:01:05]} 26. Kf2 {[%emt 0:03:52]} Nxb4 {[%emt 0:00:11]} 27. Ke1 {[%emt 0:01:02]} Nd3+ {[%emt 0:00:18]} 28. Kd2 {[%emt 0:00:35]} Nxf4 {[%emt 0:00:05]} 29. exf4 {[%emt 0:00:07]} e6 {[%emt 0:00:44]} 30. Rb8 {[%emt 0:01:54]} d5 {[%emt 0:00:05]} 31. g3 {[%emt 0:01:48]} Bb4+ {[%emt 0:00:14]} 32. Kc2 {[%emt 0:00:17]} Be1 {[%emt 0:00:11]} 33. g4 {[%emt 0:00:12]} Bg3 {[%emt 0:00:09]} 34. f5 {[%emt 0:00:10]} Bxb8 {[%emt 0:00:02]} 0-1

[Event "4th Memorial Warakomska-B 2020"]
[Site "Suwalki"]
[Date "2020.08.07"]
[Round "1.14"]
[White "Borowik, Wojciech"]
[Black "Kolcon, Waclaw"]
[Result "1/2-1/2"]
[ECO "D15"]
[WhiteElo "1769"]
[BlackElo "1235"]
[Annotator "NA RC"]
[PlyCount "105"]
[EventDate "2020.08.06"]
[EventType "swiss"]
[EventCountry "POL"]
[SourceTitle "playchess.com"]
[Source "ChessBase"]
[SourceQuality "1"]
[TimeControl "40/5400+30:1800+30"]

1. d4 {[%emt 0:01:47]} d5 {[%emt 0:00:00]} 2. Nf3 {[%emt 0:00:57]} Nf6 {[%emt 0:01:15]} 3. c4 {[%emt 0:00:11]} c6 {[%emt 0:00:29]} 4. Nc3 {[%emt 0:05:33]} a6 {[%emt 0:01:31]} 5. e3 {[%emt 0:01:55]} g6 {[%emt 0:05:57]} 6. Bd3 {[%emt 0:01:01]} Bg7 {[%emt 0:02:57]} 7. O-O {[%emt 0:01:03]} O-O {[%emt 0:01:08]} 8. a3 {[%emt 0:01:51]} b5 {[%emt 0:05:53]} 9. b3 {[%emt 0:15:33]} Nbd7 {[%emt 0:12:17]} 10. Bb2 {[%emt 0:04:23]} Re8 {[%emt 0:04:24]} 11. Rc1 {[%emt 0:04:36]} e5 {[%emt 0:07:05]} 12. dxe5 {[%emt 0:08:18]} Ng4 {[%emt 0:04:36]} 13. cxd5 {[%emt 0:22:15]} Ndxe5 {[%emt 0:00:50]} 14. Be2 {[%emt 0:04:15]} cxd5 {[%emt 0:05:25]} 15. Nxe5 {[%emt 0:03:00]} Nxe5 {[%emt 0:02:11]} 16. Qxd5 {[%emt 0:03:41]} Be6 {[%emt 0:01:21]} 17. Qxd8 {[%emt 0:03:44]} Rexd8 {[%emt 0:05:24]} 18. b4 {[%emt 0:11:13]} Bc4 {[%emt 0:04:17]} 19. Rfd1 {[%emt 0:02:39]} Bxe2 {[%emt 0:02:52]} 20. Nxe2 {[%emt 0:01:32]} Nd3 {[%emt 0:00:50]} 21. Bxg7 {[%emt 0:00:28]} Nxc1 {[%emt 0:00:32]} 22. Nd4 {[%emt 0:00:30]} Kxg7 {[%emt 0:03:31]} 23. Rxc1 {[%emt 0:00:07]} Rac8 {[%emt 0:01:34]} 24. Rc5 {[%emt 0:00:32]} Kf8 {[%emt 0:04:26]} 25. Kf1 {[%emt 0:00:13]} Rxc5 {[%emt 0:03:04]} 26. bxc5 {[%emt 0:00:02]} Rc8 {[%emt 0:00:31]} 27. c6 {[%emt 0:00:15]} Ke7 {[%emt 0:00:15]} 28. Ke2 {[%emt 0:00:19]} Kd6 {[%emt 0:01:47]} 29. Kd3 {[%emt 0:00:05]} Kc5 {[%emt 0:03:30]} 30. Kc3 {[%emt 0:01:16]} a5 {[%emt 0:00:33]} 31. Kb3 {[%emt 0:00:31]} Rc7 {[%emt 0:06:46]} 32. Kc3 {[%emt 0:00:41]} Kb6 {[%emt 0:03:08]} 33. Kb3 {[%emt 0:00:30]} f5 {[%emt 0:00:25]} 34. g3 {[%emt 0:01:02]} Rc8 {[%emt 0:02:20]} 35. Kc3 {[%emt 0:00:28]} Rc7 {[%emt 0:00:35]} 36. Kb3 {[%emt 0:00:07]} Ra7 {[%emt 0:00:26]} 37. Kc3 {[%emt 0:00:05]} Kc5 {[%emt 0:01:03]} 38. Kb3 b4 {[%emt 0:01:29]} 39. a4 {[%emt 0:01:24]} Kb6 {[%emt 0:00:46]} 40. Nb5 {[%emt 0:00:00]} Rc7 {[%emt 0:00:00]} 41. Nxc7 {[%emt 0:03:57]} Kxc7 {[%emt 0:01:30]} 42. Kc4 {[%emt 0:01:26]} Kxc6 {[%emt 0:00:03]} 43. Kd4 {[%emt 0:06:23]} Kd6 {[%emt 0:00:45]} 44. f3 {[%emt 0:03:48]} Ke6 {[%emt 0:06:52]} 45. h4 {[%emt 0:09:01]} Kd6 {[%emt 0:05:59]} 46. f4 {[%emt 0:00:55]} Ke6 {[%emt 0:04:07]} 47. Kc4 {[%emt 0:00:21]} Kf6 {[%emt 0:00:27]} 48. Kd4 {[%emt 0:00:22]} h6 {[%emt 0:00:46]} 49. Kc4 {[%emt 0:00:11]} g5 {[%emt 0:00:34]} 50. h5 {[%emt 0:00:38]} gxf4 {[%emt 0:01:55]} 51. exf4 {[%emt 0:01:43]} Ke6 {[%emt 0:00:28]} 52. Kd4 {[%emt 0:00:08]} Kd6 {[%emt 0:01:45]} 53. Kc4 {[%emt 0:00:10]} 1/2-1/2

[Event "4th Memorial Warakomska-B 2020"]
[Site "Suwalki"]
[Date "2020.08.07"]
[Round "2.1"]
[White "Szwaj, Jacek"]
[Black "Kitewski, Bartosz"]
[Result "0-1"]
[ECO "C06"]
[WhiteElo "1983"]
[BlackElo "1718"]
[Annotator "ChessBase"]
[PlyCount "132"]
[EventDate "2020.08.06"]
[EventType "swiss"]
[EventCountry "POL"]
[SourceTitle "playchess.com"]
[Source "ChessBase"]
[SourceQuality "1"]
[TimeControl "40/5400+30:1800+30"]

1. e4 {[%emt 0:00:00]} e6 {[%emt 0:00:00]} 2. d4 {[%emt 0:00:09]} d5 {[%emt 0:00:00]} 3. Nd2 {[%emt 0:00:06]} Nf6 {[%emt 0:00:00]} 4. e5 {[%emt 0:01:38]} Nfd7 {[%emt 0:00:12]} 5. Bd3 {[%emt 0:00:09]} c5 {[%emt 0:00:11]} 6. c3 {[%emt 0:00:03]} Nc6 {[%emt 0:01:36]} 7. Ne2 {[%emt 0:00:20]} cxd4 {[%emt 0:00:13]} 8. cxd4 {[%emt 0:00:08]} f6 {[%emt 0:00:07]} 9. exf6 {[%emt 0:02:02]} Nxf6 {[%emt 0:00:11]} 10. Nf3 {[%emt 0:01:35]} Bd6 {[%emt 0:01:26]} 11. O-O {[%emt 0:03:01]} Qc7 {[%emt 0:01:38]} 12. Bg5 {[%emt 0:00:39]} O-O {[%emt 0:01:42]} 13. Bh4 {[%emt 0:03:31]} Bd7 {[%emt 0:12:44]} 14. Bg3 {[%emt 0:01:19]} Rae8 {[%emt 0:08:55]} 15. Rc1 {[%emt 0:04:34]} Nh5 {[%emt 0:10:08]} 16. Qc2 {[%emt 0:06:17]} Nf6 {[%emt 0:10:31]} 17. Ne5 {[%emt 0:02:54]} Rc8 {[%emt 0:04:04]} 18. Qb1 {[%emt 0:08:04]} a6 {[%emt 0:12:33]} 19. a3 {[%emt 0:01:34]} b5 {[%emt 0:03:44]} 20. b4 {[%emt 0:00:23]} Kh8 {[%emt 0:02:45]} 21. Rc3 {[%emt 0:05:01]} Bxe5 {[%emt 0:04:24]} 22. Bxe5 {[%emt 0:02:06]} Qa7 {[%emt 0:00:58]} 23. Bxh7 {[%emt 0:21:53]} Nxe5 {[%emt 0:05:35]} 24. Rh3 {[%emt 0:00:21]} Neg4 {[%emt 0:01:07]} 25. Nf4 {[%emt 0:04:13]} Nh6 {[%emt 0:02:33]} 26. Ng6+ {[%emt 0:13:26]} Kxh7 {[%emt 0:00:08]} 27. Nxf8+ {[%emt 0:00:06]} Kg8 {[%emt 0:00:25]} 28. Rxh6 {[%emt 0:02:40]} gxh6 {[%emt 0:03:18]} 29. Qg6+ {[%emt 0:00:33]} Kxf8 {[%emt 0:00:11]} 30. Qxf6+ {[%emt 0:00:04]} Ke8 {[%emt 0:00:16]} 31. Re1 {[%emt 0:00:35]} Rc4 {[%emt 0:00:56]} 32. Rd1 {[%emt 0:01:22]} Qc7 {[%emt 0:02:05]} 33. Qxh6 {[%emt 0:01:15]} Qd6 {[%emt 0:03:03]} 34. h4 {[%emt 0:04:25]} Qf8 {[%emt 0:01:20]} 35. Qg5 {[%emt 0:00:16]} Qf5 {[%emt 0:00:38]} 36. Qg8+ {[%emt 0:00:47]} Ke7 {[%emt 0:01:16]} 37. Qg3 {[%emt 0:02:58]} Qf6 {[%emt 0:02:32]} 38. Qg5 {[%emt 0:03:48]} Qxg5 {[%emt 0:02:58]} 39. hxg5 {[%emt 0:00:05]} Be8 {[%emt 0:00:29]} 40. f4 {[%emt 0:00:00]} Bg6 {[%emt 0:00:00]} 41. g4 {[%emt 0:01:59]} Be4 {[%emt 0:02:10]} 42. Kh2 {[%emt 0:01:10]} Rc2+ {[%emt 0:02:40]} 43. Kh3 {[%emt 0:00:20]} Rf2 {[%emt 0:00:24]} 44. Rc1 {[%emt 0:03:37]} Kd7 {[%emt 0:04:27]} 45. g6 {[%emt 0:03:54]} Rxf4 {[%emt 0:02:34]} 46. g7 {[%emt 0:00:30]} Bh7 {[%emt 0:00:07]} 47. g5 {[%emt 0:00:16]} Bg8 {[%emt 0:04:44]} 48. g6 {[%emt 0:01:17]} Rf6 {[%emt 0:00:18]} 49. Rg1 {[%emt 0:00:07]} Rf5 {[%emt 0:00:25]} 50. Kg4 {[%emt 0:02:18]} Ke7 {[%emt 0:00:13]} 51. Rc1 {[%emt 0:00:09]} Kf6 {[%emt 0:01:14]} 52. Rc8 {[%emt 0:00:15]} Kxg7 {[%emt 0:00:19]} 53. Rc6 {[%emt 0:00:18]} Kxg6 {[%emt 0:00:37]} 54. Rxa6 {[%emt 0:00:08]} Rf2 {[%emt 0:01:02]} 55. Ra5 {[%emt 0:01:15]} Ra2 {[%emt 0:03:01]} 56. Kf4 {[%emt 0:00:07]} Kf6 {[%emt 0:00:16]} 57. Ke3 {[%emt 0:03:02]} Bh7 {[%emt 0:00:30]} 58. Kf4 {[%emt 0:00:48]} Bd3 {[%emt 0:00:16]} 59. Ra8 {[%emt 0:00:56]} Bc4 {[%emt 0:00:45]} 60. Rf8+ {[%emt 0:00:30]} Ke7 {[%emt 0:00:21]} 61. Ra8 {[%emt 0:00:14]} Rd2 {[%emt 0:01:22]} 62. Kg5 {[%emt 0:00:19]} Rxd4 {[%emt 0:00:27]} 63. Ra7+ {[%emt 0:00:05]} Kd6 {[%emt 0:00:15]} 64. Kf6 {[%emt 0:02:23]} Rf4+ {[%emt 0:00:10]} 65. Kg5 {[%emt 0:00:03]} Ke5 {[%emt 0:00:18]} 66. Ra6 {[%emt 0:00:12]} Re4 {[%emt 0:00:25]} 0-1

[Event "4th Memorial Warakomska-B 2020"]
[Site "Suwalki"]
[Date "2020.08.07"]
[Round "2.2"]
[White "Zalega, Maciej"]
[Black "Kiolbasa, Damian"]
[Result "1/2-1/2"]
[ECO "B17"]
[WhiteElo "1743"]
[BlackElo "1973"]
[Annotator "ChessBase"]
[PlyCount "98"]
[EventDate "2020.08.06"]
[EventType "swiss"]
[EventCountry "POL"]
[SourceTitle "playchess.com"]
[Source "ChessBase"]
[SourceQuality "1"]
[TimeControl "40/5400+30:1800+30"]

1. e4 {[%emt 0:00:00]} c6 {[%emt 0:00:00]} 2. d4 {[%emt 0:00:00]} d5 {[%emt 0:00:00]} 3. Nc3 {[%emt 0:00:23]} dxe4 {[%emt 0:00:01]} 4. Nxe4 {[%emt 0:00:05]} Nd7 {[%emt 0:00:03]} 5. Nf3 {[%emt 0:01:44]} Ndf6 {[%emt 0:00:11]} 6. Nxf6+ {[%emt 0:05:08]} exf6 {[%emt 0:00:02]} 7. Bf4 {[%emt 0:05:35]} Ne7 {[%emt 0:00:21]} 8. Bd3 {[%emt 0:02:28]} Nd5 {[%emt 0:00:34]} 9. Bg3 {[%emt 0:00:45]} Bd6 {[%emt 0:00:44]} 10. O-O {[%emt 0:02:10]} O-O {[%emt 0:00:59]} 11. c3 {[%emt 0:02:49]} Bg4 {[%emt 0:00:49]} 12. Qc2 {[%emt 0:00:53]} Bxf3 {[%emt 0:01:21]} 13. Bxh7+ {[%emt 0:00:28]} Kh8 {[%emt 0:00:03]} 14. gxf3 {[%emt 0:00:03]} Bxg3 {[%emt 0:00:34]} 15. hxg3 {[%emt 0:00:12]} g6 {[%emt 0:00:14]} 16. Bxg6 {[%emt 0:00:10]} fxg6 {[%emt 0:00:02]} 17. Qxg6 {[%emt 0:00:10]} Qd7 {[%emt 0:03:27]} 18. Kg2 {[%emt 0:01:03]} Qg7 {[%emt 0:00:00]} 19. Qf5 {[%emt 0:02:55]} Ne7 {[%emt 0:07:21]} 20. Qe6 {[%emt 0:02:35]} Qf7 {[%emt 0:03:08]} 21. Qg4 {[%emt 0:24:06]} Ng6 {[%emt 0:00:31]} 22. f4 {[%emt 0:03:57]} f5 {[%emt 0:00:18]} 23. Qg5 {[%emt 0:00:08]} Kg7 {[%emt 0:00:11]} 24. Rae1 {[%emt 0:00:52]} Qf6 {[%emt 0:01:26]} 25. Qxf6+ {[%emt 0:02:03]} Kxf6 {[%emt 0:00:44]} 26. Re3 {[%emt 0:03:12]} Rae8 {[%emt 0:00:25]} 27. Rh1 {[%emt 0:00:53]} Rh8 {[%emt 0:10:56]} 28. Rhe1 {[%emt 0:01:32]} Re7 {[%emt 0:00:02]} 29. Rxe7 {[%emt 0:00:51]} Nxe7 {[%emt 0:02:11]} 30. f3 {[%emt 0:01:22]} Rd8 {[%emt 0:00:26]} 31. Re5 {[%emt 0:02:55]} Rd5 {[%emt 0:00:20]} 32. Kf2 {[%emt 0:03:50]} c5 {[%emt 0:01:26]} 33. Ke3 {[%emt 0:01:39]} cxd4+ {[%emt 0:00:24]} 34. cxd4 {[%emt 0:00:04]} Rd7 {[%emt 0:01:12]} 35. g4 {[%emt 0:02:25]} Rd6 {[%emt 0:03:19]} 36. Kd3 {[%emt 0:05:17]} Ra6 {[%emt 0:07:52]} 37. d5 {[%emt 0:02:35]} Rxa2 {[%emt 0:15:31]} 38. d6 {[%emt 0:00:26]} Nc6 {[%emt 0:00:11]} 39. g5+ {[%emt 0:01:31]} Kg7 {[%emt 0:06:30]} 40. d7 {[%emt 0:00:00]} Rxb2 {[%emt 0:00:00]} 41. Re7+ {[%emt 0:03:02]} Kf8 {[%emt 0:20:10]} 42. Re8+ {[%emt 0:00:56]} Kf7 {[%emt 0:05:26]} 43. d8=Q {[%emt 0:07:53]} Nxd8 {[%emt 0:00:29]} 44. Rxd8 {[%emt 0:00:07]} Rb6 {[%emt 0:06:56]} 45. Rd5 {[%emt 0:02:07]} Kg6 {[%emt 0:00:03]} 46. Kd4 {[%emt 0:01:14]} Rb3 47. Rd6+ Kg7 48. Ke5 Rb5+ 49. Ke6 a5 1/2-1/2

[Event "4th Memorial Warakomska-B 2020"]
[Site "Suwalki"]
[Date "2020.08.07"]
[Round "2.3"]
[White "Ryszkiewicz, Adam"]
[Black "Siekanska, Zuzanna"]
[Result "1-0"]
[ECO "B80"]
[WhiteElo "1941"]
[BlackElo "1680"]
[Annotator "ChessBase"]
[PlyCount "59"]
[EventDate "2020.08.06"]
[EventType "swiss"]
[EventCountry "POL"]
[SourceTitle "playchess.com"]
[Source "ChessBase"]
[SourceQuality "1"]
[TimeControl "40/5400+30:1800+30"]

1. e4 {[%emt 0:00:00]} c5 {[%emt 0:00:00]} 2. Nf3 {[%emt 0:00:00]} e6 {[%emt 0:00:00]} 3. d4 {[%emt 0:00:00]} cxd4 {[%emt 0:00:00]} 4. Nxd4 {[%emt 0:00:00]} Nf6 {[%emt 0:00:06]} 5. Nc3 {[%emt 0:00:00]} d6 {[%emt 0:00:07]} 6. Be3 {[%emt 0:00:00]} a6 {[%emt 0:00:33]} 7. a4 {[%emt 0:00:19]} b6 {[%emt 0:08:09]} 8. Be2 {[%emt 0:00:33]} Bb7 {[%emt 0:01:00]} 9. f3 {[%emt 0:00:06]} Nbd7 {[%emt 0:01:16]} 10. Qd2 {[%emt 0:00:14]} Rc8 {[%emt 0:02:08]} 11. O-O {[%emt 0:00:32]} Be7 {[%emt 0:00:42]} 12. Rfd1 {[%emt 0:13:03]} O-O {[%emt 0:03:31]} 13. Qe1 {[%emt 0:01:39]} Ne5 {[%emt 0:11:30]} 14. Qg3 {[%emt 0:01:30]} Kh8 {[%emt 0:03:48]} 15. Nb3 {[%emt 0:09:52]} Nc4 {[%emt 0:03:53]} 16. Bxc4 {[%emt 0:00:07]} Rxc4 {[%emt 0:00:08]} 17. Qf2 {[%emt 0:01:06]} Nd7 {[%emt 0:03:51]} 18. Rd2 {[%emt 0:06:47]} Rc8 {[%emt 0:09:05]} 19. Bf4 {[%emt 0:04:07]} Qc7 {[%emt 0:02:45]} 20. Rad1 {[%emt 0:00:30]} e5 {[%emt 0:01:26]} 21. Be3 {[%emt 0:00:06]} f5 {[%emt 0:00:48]} 22. exf5 {[%emt 0:00:24]} Rxf5 {[%emt 0:00:20]} 23. Qe2 {[%emt 0:07:23]} Qc4 {[%emt 0:08:10]} 24. Nc1 {[%emt 0:06:18]} Qh4 {[%emt 0:04:33]} 25. Qf2 {[%emt 0:06:20]} Qf6 {[%emt 0:07:06]} 26. N1e2 {[%emt 0:02:23]} Bxf3 {[%emt 0:11:48]} 27. Ng3 {[%emt 0:04:28]} Bxd1 {[%emt 0:04:27]} 28. Qxf5 {[%emt 0:00:33]} Bxc2 {[%emt 0:05:03]} 29. Rxc2 {[%emt 0:01:02]} Rd8 {[%emt 0:02:04]} 30. Nd5 {[%emt 0:00:50]} 1-0

[Event "4th Memorial Warakomska-B 2020"]
[Site "Suwalki"]
[Date "2020.08.07"]
[Round "2.4"]
[White "Sapinski, Sebastian"]
[Black "Sapeta, Robert"]
[Result "1/2-1/2"]
[ECO "B06"]
[WhiteElo "1603"]
[BlackElo "1895"]
[Annotator "NA"]
[PlyCount "69"]
[EventDate "2020.08.06"]
[EventType "swiss"]
[EventCountry "POL"]
[SourceTitle "playchess.com"]
[Source "ChessBase"]
[SourceQuality "1"]
[TimeControl "40/5400+30:1800+30"]

1. e4 {[%emt 0:00:00]} g6 {[%emt 0:00:00]} 2. d4 {[%emt 0:00:00]} Bg7 {[%emt 0:00:00]} 3. Nf3 {[%emt 0:01:58]} d6 {[%emt 0:00:09]} 4. Bc4 {[%emt 0:04:16]} Nf6 {[%emt 0:01:00]} 5. Nbd2 {[%emt 0:04:19]} O-O {[%emt 0:07:44]} 6. O-O {[%emt 0:03:53]} c6 {[%emt 0:04:27]} 7. c3 {[%emt 0:05:36]} Nbd7 {[%emt 0:03:19] B07: Pirc Defence: Miscellaneous Systems.} 8. Re1 {[%emt 0:04:17]} e5 {[%emt 0:01:38]} 9. Bb3 {[%emt 0:04:22]} b5 {[%emt 0:04:38]} 10. a4 {[%emt 0:04:37]} a5 {[%emt 0:09:03]} 11. Nf1 {[%emt 0:07:03] [#]} h6 $146 {[%emt 0:02:23]} ({Predecessor:} 11... Qc7 12. Bc2 Rd8 13. Bg5 h6 14. Be3 Bb7 15. Ng3 Ng4 16. Bd2 Nb6 17. Qc1 Nc4 {0-1 (39) Adair,M (1384)-Mueller,P (1785) Frankfurt 2006}) 12. h3 {[%emt 0:04:32]} Bb7 {[%emt 0:06:59]} 13. Ng3 {[%emt 0:08:29]} exd4 {[%emt 0:25:11]} 14. cxd4 {[%emt 0:01:51]} bxa4 {[%emt 0:00:48]} 15. Bxa4 {[%emt 0:04:53]} Nb6 {[%emt 0:10:09]} 16. Bb3 {[%emt 0:09:34]} c5 {[%emt 0:05:37]} 17. e5 {[%emt 0:03:51]} dxe5 {[%emt 0:10:06]} 18. dxc5 {[%emt 0:06:26]} (18. dxe5 $14 Qxd1 19. Bxd1 (19. Rxd1 Nfd5 $15)) 18... Qxd1 {[%emt 0:00:25]} 19. Bxd1 {[%emt 0:00:11]} Nbd7 {[%emt 0:00:35]} 20. Nxe5 {[%emt 0:02:28]} Nxc5 {[%emt 0:00:49]} 21. Be3 {[%emt 0:02:00]} Ne6 {[%emt 0:00:52]} 22. Bb3 {[%emt 0:02:39]} Bd5 {[%emt 0:00:24]} 23. Bxd5 {[%emt 0:03:27]} Nxd5 {[%emt 0:00:05]} 24. Bd2 {[%emt 0:00:28]} Nc5 {[%emt 0:02:37]} 25. Rxa5 {[%emt 0:01:43]} Rxa5 {[%emt 0:00:14]} 26. Bxa5 {[%emt 0:00:07]} Nb3 {[%emt 0:00:20]} 27. Bc3 {[%emt 0:00:48]} Re8 {[%emt 0:01:08]} 28. Nc4 {[%emt 0:03:09]} Rxe1+ {[%emt 0:01:15]} 29. Bxe1 $11 {[%emt 0:00:07]} Nf4 {[%emt 0:00:26]} 30. Bc3 {[%emt 0:00:32]} Bxc3 {[%emt 0:00:26]} 31. bxc3 {[%emt 0:00:04]} Nc1 {[%emt 0:00:56]} 32. Kf1 {[%emt 0:01:21]} Na2 {[%emt 0:00:07]} 33. Ne2 {[%emt 0:02:20]} Nxe2 {[%emt 0:00:13]} 34. Kxe2 {[%emt 0:00:11]} Nxc3+ {[%emt 0:00:02]} 35. Kd3 {[%emt 0:01:28]} 1/2-1/2

[Event "4th Memorial Warakomska-B 2020"]
[Site "Suwalki"]
[Date "2020.08.07"]
[Round "2.5"]
[White "Kaznowska, Weronika"]
[Black "Obolonin, Filipp"]
[Result "0-1"]
[ECO "D35"]
[WhiteElo "1594"]
[BlackElo "1922"]
[Annotator "ChessBase"]
[PlyCount "126"]
[EventDate "2020.08.06"]
[EventType "swiss"]
[EventCountry "POL"]
[SourceTitle "playchess.com"]
[Source "ChessBase"]
[SourceQuality "1"]
[TimeControl "40/5400+30:1800+30"]

1. d4 {[%emt 0:00:00]} Nf6 {[%emt 0:06:18]} 2. c4 {[%emt 0:00:01]} e6 {[%emt 0:00:08]} 3. Nc3 {[%emt 0:00:28]} d5 {[%emt 0:01:03]} 4. Bf4 {[%emt 0:01:37]} c6 {[%emt 0:00:12]} 5. e3 {[%emt 0:01:31]} Nbd7 {[%emt 0:00:17]} 6. Nf3 {[%emt 0:04:33]} Be7 {[%emt 0:00:48]} 7. Bd3 {[%emt 0:00:59]} Nh5 {[%emt 0:00:19]} 8. Be5 {[%emt 0:08:47]} Nxe5 {[%emt 0:01:00]} 9. Nxe5 {[%emt 0:00:06]} Nf6 {[%emt 0:01:56]} 10. c5 {[%emt 0:08:44]} Nd7 {[%emt 0:00:19]} 11. Nxd7 {[%emt 0:05:41]} Bxd7 {[%emt 0:00:07]} 12. b4 {[%emt 0:02:58]} b6 {[%emt 0:00:06]} 13. O-O {[%emt 0:00:44]} O-O {[%emt 0:00:23]} 14. f4 {[%emt 0:03:29]} a5 {[%emt 0:00:40]} 15. a3 {[%emt 0:01:24]} g6 {[%emt 0:04:11]} 16. Na4 {[%emt 0:08:15]} axb4 {[%emt 0:00:23]} 17. axb4 {[%emt 0:00:08]} bxc5 {[%emt 0:00:19]} 18. bxc5 {[%emt 0:00:14]} f6 {[%emt 0:01:44]} 19. Nb6 {[%emt 0:04:21]} Rxa1 {[%emt 0:01:15]} 20. Qxa1 {[%emt 0:00:08]} e5 {[%emt 0:00:49]} 21. Qa7 {[%emt 0:01:26]} Be8 {[%emt 0:02:16]} 22. Ra1 {[%emt 0:02:39]} exd4 {[%emt 0:00:24]} 23. exd4 {[%emt 0:02:18]} f5 {[%emt 0:00:06]} 24. Re1 {[%emt 0:11:12]} Bf6 {[%emt 0:00:25]} 25. Qa4 {[%emt 0:00:07]} Rf7 {[%emt 0:00:34]} 26. Re6 {[%emt 0:13:09]} Re7 {[%emt 0:03:21]} 27. Rxe7 {[%emt 0:04:24]} Qxe7 {[%emt 0:01:11]} 28. Kf2 {[%emt 0:00:13]} Qg7 {[%emt 0:03:22]} 29. Ke3 {[%emt 0:00:47]} g5 {[%emt 0:00:11]} 30. Nxd5 {[%emt 0:01:15]} gxf4+ {[%emt 0:03:06]} 31. Nxf4 {[%emt 0:00:13]} Qh6 {[%emt 0:03:52]} 32. h3 {[%emt 0:04:22]} Qg5 {[%emt 0:04:44]} 33. Qa2+ {[%emt 0:06:01]} Bf7 {[%emt 0:00:49]} 34. Qf2 {[%emt 0:00:14]} Bg7 {[%emt 0:02:27]} 35. Ke2 {[%emt 0:00:13]} Qf6 {[%emt 0:00:23]} 36. Ke3 {[%emt 0:02:09]} Qxd4+ {[%emt 0:00:12]} 37. Kf3 {[%emt 0:00:10]} Qc3 {[%emt 0:04:49]} 38. Qc2 {[%emt 0:00:38]} Qa3 {[%emt 0:01:14]} 39. Ne2 {[%emt 0:01:15]} Bd5+ {[%emt 0:00:54]} 40. Kf2 {[%emt 0:00:00]} Bf8 {[%emt 0:00:00]} 41. Bxf5 {[%emt 0:09:34]} Bxc5+ {[%emt 0:01:43]} 42. Ke1 {[%emt 0:02:25]} Qe3 {[%emt 0:14:40]} 43. Bxh7+ {[%emt 0:05:42]} Kh8 {[%emt 0:00:39]} 44. Bd3 {[%emt 0:00:44]} Bb4+ {[%emt 0:10:11]} 45. Kd1 {[%emt 0:04:21]} c5 {[%emt 0:02:20]} 46. Qb2+ {[%emt 0:01:42]} Kg8 {[%emt 0:00:58]} 47. Nc1 {[%emt 0:04:59]} Qe1+ {[%emt 0:15:24]} 48. Kc2 {[%emt 0:00:41]} c4 {[%emt 0:01:17]} 49. Bg6 {[%emt 0:04:18]} Qf2+ {[%emt 0:01:00]} 50. Kb1 {[%emt 0:00:39]} Qb6 {[%emt 0:01:03]} 51. Bf5 {[%emt 0:02:04]} c3 {[%emt 0:01:05]} 52. Qe2 {[%emt 0:00:43]} Ba3+ {[%emt 0:07:14]} 53. Kc2 {[%emt 0:00:35]} Qb2+ {[%emt 0:01:22]} 54. Kd3 {[%emt 0:00:33]} Qb5+ {[%emt 0:02:13]} 55. Ke3 {[%emt 0:00:38]} Bxc1+ {[%emt 0:00:39]} 56. Kf2 {[%emt 0:00:34]} Qxe2+ {[%emt 0:01:13]} 57. Kxe2 {[%emt 0:00:33]} Bxg2 {[%emt 0:00:37]} 58. Kd3 {[%emt 0:00:37]} Bd2 {[%emt 0:00:47]} 59. Kc2 {[%emt 0:00:36]} Kg7 {[%emt 0:00:35]} 60. Bg4 {[%emt 0:00:34]} Kh6 {[%emt 0:00:35]} 61. Bf5 {[%emt 0:00:32]} Kg5 {[%emt 0:00:41]} 62. Bd3 {[%emt 0:00:36]} Bxh3 {[%emt 0:00:40]} 63. Bh7 {[%emt 0:00:34]} Bf5+ {[%emt 0:00:38]} 0-1